fUST/lending_fUST_20250403
["ID","MTS","AMOUNT","RATE_DAILY","PERIOD"]
[357071472,1743687048454,-2466.78,0.0001863,2]
[357071473,1743687048463,-500.0,0.0001863,2]
[357071474,1743687048473,-500.0,0.0001863,2]
[357071475,1743687048483,-500.0,0.0001863,2]
[357071476,1743687048493,-500.0,0.0001863,2]
[357071477,1743687048503,-500.0,0.0001863,2]
[357071478,1743687048512,-500.0,0.0001863,2]
[357071479,1743687048522,-500.0,0.0001863,2]
[357071480,1743687048532,-912.83,0.0001863,2]
[357071481,1743687048542,-513.32,0.0001863,2]
[357071482,1743687048552,-923.55,0.0001863,2]
[357071483,1743687048561,-500.0,0.0001863,2]
[357071484,1743687048571,-500.0,0.0001863,2]
[357071485,1743687048582,-842.99,0.0001863,2]
[357071486,1743687048592,-500.0,0.0001863,2]
[357071487,1743687048602,-1875.47,0.0001863,2]
[357071488,1743687048614,-500.0,0.0001863,2]
[357071489,1743687048624,-500.0,0.0001863,2]
[357071490,1743687048634,-500.0,0.0001863,2]
[357071491,1743687048643,-2004.56,0.0001863,2]
[357071492,1743687048654,-500.0,0.0001863,2]
[357071493,1743687048664,-1307.68,0.0001863,2]
[357071494,1743687048674,-500.0,0.0001863,2]
[357071495,1743687048685,-2254.39,0.0001863,2]
[357071496,1743687048695,-636.75,0.0001863,2]
[357071497,1743687048706,-500.0,0.0001863,2]
[357071498,1743687048715,-2537.82,0.0001863,2]
[357071499,1743687048725,-957.44,0.0001863,2]
[357071500,1743687048736,-1020.41,0.0001863,2]
[357071501,1743687048745,-455.5498913,0.0001863,2]
[357071502,1743687048755,-727.56,0.0001863,2]
[357071503,1743687048766,-530.16,0.0001863,2]
[357071504,1743687048779,-579.7,0.0001863,2]
[357071505,1743687048790,-1818.67,0.0001863,2]
[357071506,1743687048800,-5713.53,0.0001863,2]
[357071507,1743687048811,-5394.85,0.0001863,2]
[357071508,1743687048822,-2136.21,0.0001863,2]
[357071509,1743687049045,-1893.4,0.0001863,2]
[357071510,1743687049057,-500.0,0.0001863,2]
[357071511,1743687049068,-861.52,0.0001863,2]
[357071512,1743687049079,-1082.76,0.0001863,2]
[357071513,1743687049090,-500.0,0.0001863,2]
[357071514,1743687049100,-500.0,0.0001863,2]
[357071515,1743687049114,-500.0,0.0001863,2]
[357071516,1743687049125,-701.93,0.0001863,2]
[357071517,1743687049136,-659.88,0.0001863,2]
[357071518,1743687049147,-1253.96,0.0001863,2]
[357071519,1743687049158,-1399.29,0.0001863,2]
[357071520,1743687049168,-500.0,0.0001863,2]
[357071521,1743687049179,-3148.28,0.0001863,2]
[357071522,1743687049190,-500.0,0.0001863,2]
[357071523,1743687049201,-500.0,0.0001863,2]
[357071524,1743687049211,-500.0,0.0001863,2]
[357071525,1743687049221,-523.11,0.0001863,2]
[357071526,1743687049231,-1356.99,0.0001863,2]
[357071527,1743687049241,-615.66,0.0001863,2]
[357071528,1743687049252,-500.0,0.0001863,2]
[357071529,1743687049263,-1099.5,0.0001863,2]
[357071530,1743687049273,-440.85657698,0.0001863,2]
[357071531,1743687049283,-2862.34,0.0001863,2]
[357071532,1743687049293,-12717.15,0.0001863,2]
[357071533,1743687049303,-500.0,0.0001863,2]
[357071534,1743687049312,-500.0,0.0001863,2]
[357071535,1743687049322,-5667.82865638,0.00018659,2]
[357071536,1743687049332,-300.0,0.00018713,2]
[357071537,1743687049343,-166.915,0.00018716,2]
[357071538,1743687049353,-500.0,0.00018904,2]
[357071539,1743687049366,-500.0,0.00018904,2]
[357071540,1743687049375,-461.07796609,0.00018904,2]
[357071541,1743687049385,-500.0,0.00018904,2]
[357071542,1743687049395,-270.63073275,0.00018904,2]
[357071543,1743687049406,-500.0,0.00018904,2]
[357071544,1743687049415,-500.0,0.00018904,2]
[357071545,1743687049424,-500.0,0.00018904,2]
[357071546,1743687049434,-500.0,0.00018904,2]
[357071547,1743687049444,-606.30357655,0.00018904,2]
[357071548,1743687049455,-500.0,0.00018904,2]
[357071549,1743687049464,-500.0,0.00018904,2]
[357071550,1743687049474,-730.05,0.00018904,2]
[357071551,1743687049485,-683.61,0.00018904,2]
[357071552,1743687049495,-500.0,0.00018904,2]
[357071553,1743687049505,-500.0,0.00018904,2]
[357071554,1743687049515,-500.0,0.00018904,2]
[357071555,1743687049525,-1207.34,0.00018904,2]
[357071556,1743687049535,-558.56,0.00018904,2]
[357071557,1743687049545,-500.0,0.00018904,2]
[357071558,1743687049554,-500.0,0.00018904,2]
[357071559,1743687049564,-504.37,0.00018904,2]
[357071560,1743687049576,-523.18,0.00018904,2]
[357071561,1743687049586,-1211.47,0.00018904,2]
[357071562,1743687049596,-650.38,0.00018904,2]
[357071563,1743687049606,-500.0,0.00018904,2]
[357071564,1743687049618,-2375.27,0.00018904,2]
[357071565,1743687049628,-500.0,0.00018904,2]
[357071566,1743687049639,-500.0,0.00018904,2]
[357071567,1743687049649,-537.64,0.00018904,2]
[357071568,1743687049659,-1916.48,0.00018904,2]
[357071569,1743687049670,-500.0,0.00018904,2]
[357071570,1743687049680,-2466.78,0.00018904,2]
[357071571,1743687049690,-500.0,0.00018904,2]
[357071572,1743687049701,-500.0,0.00018904,2]
[357071573,1743687049711,-500.0,0.00018904,2]
[357071574,1743687049721,-500.0,0.00018904,2]
[357071575,1743687049731,-589.3,0.00018904,2]
[357071576,1743687049741,-500.0,0.00018904,2]
[357071577,1743687049753,-500.0,0.00018904,2]
[357071578,1743687049763,-912.83,0.00018904,2]
[357071579,1743687049779,-513.32,0.00018904,2]
[357071580,1743687049789,-923.55,0.00018904,2]
[357071581,1743687049798,-500.0,0.00018904,2]
[357071582,1743687049808,-500.0,0.00018904,2]
[357071583,1743687049820,-842.99,0.00018904,2]
[357071584,1743687049830,-500.0,0.00018904,2]
[357071585,1743687049840,-1875.47,0.00018904,2]
[357071586,1743687049851,-500.0,0.00018904,2]
[357071587,1743687049861,-621.20156503,0.00018904,2]
[357071588,1743687049873,-500.0,0.00018904,2]
[357071589,1743687049883,-2004.56,0.00018904,2]
[357071590,1743687049893,-323.04,0.00018904,2]
[357071591,1743687049903,-1307.68,0.00018904,2]
[357071592,1743687049912,-500.0,0.00018904,2]
[357071593,1743687049924,-2254.39,0.00018904,2]
[357071594,1743687049934,-500.0,0.00018904,2]
[357071595,1743687049945,-2537.82,0.00018904,2]
[357071596,1743687049955,-957.44,0.00018904,2]
[357071597,1743687049964,-1020.41,0.00018904,2]
[357071598,1743687049974,-727.56,0.00018904,2]
[357071599,1743687049984,-530.16,0.00018904,2]
[357071600,1743687049994,-579.7,0.00018904,2]
[357071601,1743687050004,-1818.67,0.00018904,2]
[357071602,1743687050014,-5713.53,0.00018904,2]
[357071603,1743687050024,-5394.85,0.00018904,2]
[357071604,1743687050034,-2136.21,0.00018904,2]
[357071605,1743687050044,-1893.4,0.00018904,2]
[357071606,1743687050054,-500.0,0.00018904,2]
[357071607,1743687050064,-861.52,0.00018904,2]
[357071608,1743687050073,-1082.76,0.00018904,2]
[357071609,1743687050083,-500.0,0.00018904,2]
[357071610,1743687050093,-500.0,0.00018904,2]
[357071611,1743687050103,-500.0,0.00018904,2]
[357071612,1743687050114,-701.93,0.00018904,2]
[357071613,1743687050124,-659.88,0.00018904,2]
[357071614,1743687050133,-1253.96,0.00018904,2]
[357071615,1743687050143,-1399.29,0.00018904,2]
[357071616,1743687050153,-500.0,0.00018904,2]
[357071617,1743687050162,-3148.28,0.00018904,2]
[357071618,1743687050172,-500.0,0.00018904,2]
[357071619,1743687050182,-500.0,0.00018904,2]
[357071620,1743687050192,-415.84,0.00018904,2]
[357071621,1743687050202,-523.11,0.00018904,2]
[357071622,1743687050212,-1356.99,0.00018904,2]
[357071623,1743687050222,-615.66,0.00018904,2]
[357071624,1743687050232,-500.0,0.00018904,2]
[357071625,1743687050243,-1099.5,0.00018904,2]
[357071626,1743687050254,-2862.34,0.00018904,2]
[357071627,1743687050264,-12717.15,0.00018904,2]
[357071628,1743687050275,-500.0,0.00018904,2]
[357071629,1743687050285,-500.0,0.00018904,2]
[357071630,1743687050296,-2498.77693724,0.00019,2]
[357071631,1743687050306,-151.0,0.00019166,2]
[357071632,1743687050316,-500.0,0.00019178,2]
[357071633,1743687050327,-500.0,0.00019178,2]
[357071634,1743687050337,-500.0,0.00019178,2]
[357071635,1743687050346,-500.0,0.00019178,2]
[357071636,1743687050356,-500.0,0.00019178,2]
[357071637,1743687050370,-500.0,0.00019178,2]
[357071638,1743687050379,-500.0,0.00019178,2]
[357071639,1743687050390,-500.0,0.00019178,2]
[357071640,1743687050403,-500.0,0.00019178,2]
[357071641,1743687050413,-730.05,0.00019178,2]
[357071642,1743687050424,-683.61,0.00019178,2]
[357071643,1743687050434,-508.84,0.00019178,2]
[357071644,1743687050445,-500.0,0.00019178,2]
[357071645,1743687050455,-500.0,0.00019178,2]
[357071646,1743687050465,-1207.34,0.00019178,2]
[357071647,1743687050474,-558.56,0.00019178,2]
[357071648,1743687050484,-500.0,0.00019178,2]
[357071649,1743687050494,-500.0,0.00019178,2]
[357071650,1743687050504,-504.37,0.00019178,2]
[357071651,1743687050515,-523.18,0.00019178,2]
[357071652,1743687050524,-1211.47,0.00019178,2]
[357071653,1743687050535,-650.38,0.00019178,2]
[357071654,1743687050545,-500.0,0.00019178,2]
[357071655,1743687050555,-2375.27,0.00019178,2]
[357071656,1743687050566,-500.0,0.00019178,2]
[357071657,1743687050576,-500.0,0.00019178,2]
[357071658,1743687050587,-1916.48,0.00019178,2]
[357071659,1743687050597,-500.0,0.00019178,2]
[357071660,1743687050607,-2466.78,0.00019178,2]
[357071661,1743687050620,-500.0,0.00019178,2]
[357071662,1743687050630,-500.0,0.00019178,2]
[357071663,1743687050640,-251.08,0.00019178,2]
[357071664,1743687050650,-500.0,0.00019178,2]
[357071665,1743687050660,-500.0,0.00019178,2]
[357071666,1743687050670,-500.0,0.00019178,2]
[357071667,1743687050680,-912.83,0.00019178,2]
[357071668,1743687050690,-513.32,0.00019178,2]
[357071669,1743687050700,-923.55,0.00019178,2]
[357071670,1743687050710,-300.06604402,0.00019178,2]
[357071671,1743687050720,-584.16598153,0.00019178,2]
[357071672,1743687050731,-842.99,0.00019178,2]
[357071673,1743687050741,-215.3459894,0.00019178,2]
[357071674,1743687050752,-1875.47,0.00019178,2]
[357071675,1743687050762,-320.96,0.00019178,2]
[357071676,1743687050775,-500.0,0.00019178,2]
[357071677,1743687050786,-2004.56,0.00019178,2]
[357071678,1743687050797,-1307.68,0.00019178,2]
[357071679,1743687050808,-500.0,0.00019178,2]
[357071680,1743687050822,-2254.39,0.00019178,2]
[357071681,1743687050832,-500.0,0.00019178,2]
[357071682,1743687050842,-2537.82,0.00019178,2]
[357071683,1743687050853,-957.44,0.00019178,2]
[357071684,1743687050868,-1020.41,0.00019178,2]
[357071685,1743687050878,-727.56,0.00019178,2]
[357071686,1743687050888,-530.16,0.00019178,2]
[357071687,1743687050898,-579.7,0.00019178,2]
[357071688,1743687050909,-1818.67,0.00019178,2]
[357071689,1743687050919,-5713.53,0.00019178,2]
[357071690,1743687050929,-5394.85,0.00019178,2]
[357071691,1743687050938,-2136.21,0.00019178,2]
[357071692,1743687050948,-1893.4,0.00019178,2]
[357071693,1743687050958,-500.0,0.00019178,2]
[357071694,1743687050969,-861.52,0.00019178,2]
[357071695,1743687050979,-1082.76,0.00019178,2]
[357071696,1743687050989,-500.0,0.00019178,2]
[357071697,1743687050999,-500.0,0.00019178,2]
[357071698,1743687051009,-500.0,0.00019178,2]
[357071699,1743687051020,-701.93,0.00019178,2]
[357071700,1743687051030,-659.88,0.00019178,2]
[357071701,1743687051040,-1253.96,0.00019178,2]
[357071702,1743687051050,-1399.29,0.00019178,2]
[357071703,1743687051061,-500.0,0.00019178,2]
[357071704,1743687051071,-3148.28,0.00019178,2]
[357071705,1743687051080,-500.0,0.00019178,2]
[357071706,1743687051090,-500.0,0.00019178,2]
[357071707,1743687051100,-523.11,0.00019178,2]
[357071708,1743687051111,-1356.99,0.00019178,2]
[357071709,1743687051124,-615.66,0.00019178,2]
[357071710,1743687051134,-500.0,0.00019178,2]
[357071711,1743687051144,-1099.5,0.00019178,2]
[357071712,1743687051154,-2862.34,0.00019178,2]
[357071713,1743687051164,-12717.15,0.00019178,2]
[357071714,1743687051174,-500.0,0.00019178,2]
[357071715,1743687051184,-500.0,0.00019178,2]
[357071716,1743687051194,-151.0,0.000192,2]
[357071717,1743687051204,-5667.82865638,0.00019245,2]
[357071718,1743687051214,-500.0,0.00019452,2]
[357071719,1743687051225,-500.0,0.00019452,2]
[357071720,1743687051235,-500.0,0.00019452,2]
[357071721,1743687051246,-500.0,0.00019452,2]
[357071722,1743687051256,-500.0,0.00019452,2]
[357071723,1743687051404,-350.64969325,0.00019452,2]
[357071724,1743687051415,-500.0,0.00019452,2]
[357071725,1743687051426,-500.0,0.00019452,2]
[357071726,1743687051436,-500.0,0.00019452,2]
[357071727,1743687051446,-730.05,0.00019452,2]
[357071728,1743687051456,-683.61,0.00019452,2]
[357071729,1743687051466,-500.0,0.00019452,2]
[357071730,1743687051476,-500.0,0.00019452,2]
[357071731,1743687051486,-1207.34,0.00019452,2]
[357071732,1743687051496,-558.56,0.00019452,2]
[357071733,1743687051505,-500.0,0.00019452,2]
[357071734,1743687051515,-500.0,0.00019452,2]
[357071735,1743687051524,-504.37,0.00019452,2]
[357071736,1743687051534,-523.18,0.00019452,2]
[357071737,1743687051543,-1211.47,0.00019452,2]
[357071738,1743687051553,-650.38,0.00019452,2]
[357071739,1743687051563,-500.0,0.00019452,2]
[357071740,1743687051572,-2375.27,0.00019452,2]
[357071741,1743687051581,-500.0,0.00019452,2]
[357071742,1743687051591,-500.0,0.00019452,2]
[357071743,1743687051600,-1916.48,0.00019452,2]
[357071744,1743687051609,-500.0,0.00019452,2]
[357071745,1743687051623,-2466.78,0.00019452,2]
[357071746,1743687051632,-500.0,0.00019452,2]
[357071747,1743687051641,-500.0,0.00019452,2]
[357071748,1743687051650,-500.0,0.00019452,2]
[357071749,1743687051659,-500.0,0.00019452,2]
[357071750,1743687051669,-500.0,0.00019452,2]
[357071751,1743687051678,-912.83,0.00019452,2]
[357071752,1743687051687,-513.32,0.00019452,2]
[357071753,1743687051696,-923.55,0.00019452,2]
[357071754,1743687051705,-842.99,0.00019452,2]
[357071755,1743687051715,-1875.47,0.00019452,2]
[357071756,1743687051724,-500.0,0.00019452,2]
[357071757,1743687051733,-1845.24454627,0.00019452,2]
[357071758,1743687051781,-159.31545373,0.00019452,2]
[357071759,1743687051791,-1307.68,0.00019452,2]
[357071760,1743687051801,-471.12170964,0.00019452,2]
[357071761,1743687051815,-2254.39,0.00019452,2]
[357071762,1743687051824,-500.0,0.00019452,2]
[357071763,1743687051834,-2537.82,0.00019452,2]
[357071764,1743687051843,-957.44,0.00019452,2]
[357071765,1743687051853,-1020.41,0.00019452,2]
[357071766,1743687051865,-727.56,0.00019452,2]
[357071767,1743687051874,-530.16,0.00019452,2]
[357071768,1743687051884,-579.7,0.00019452,2]
[357071769,1743687051894,-1818.67,0.00019452,2]
[357071770,1743687051904,-5713.53,0.00019452,2]
[357071771,1743687051914,-5394.85,0.00019452,2]
[357071772,1743687051924,-2136.21,0.00019452,2]
[357071773,1743687051933,-1893.4,0.00019452,2]
[357071774,1743687051943,-500.0,0.00019452,2]
[357071775,1743687051954,-861.52,0.00019452,2]
[357071776,1743687051964,-1082.76,0.00019452,2]
[357071777,1743687051974,-500.0,0.00019452,2]
[357071778,1743687051984,-500.0,0.00019452,2]
[357071779,1743687051994,-242.76,0.00019452,2]
[357071780,1743687052004,-701.93,0.00019452,2]
[357071781,1743687052014,-659.88,0.00019452,2]
[357071782,1743687052024,-1253.96,0.00019452,2]
[357071783,1743687052033,-1399.29,0.00019452,2]
[357071784,1743687052043,-500.0,0.00019452,2]
[357071785,1743687052053,-3148.28,0.00019452,2]
[357071786,1743687052063,-500.0,0.00019452,2]
[357071787,1743687052072,-264.44654764,0.00019452,2]
[357071788,1743687052082,-523.11,0.00019452,2]
[357071789,1743687052091,-1356.99,0.00019452,2]
[357071790,1743687052101,-615.66,0.00019452,2]
[357071791,1743687052111,-359.85842313,0.00019452,2]
[357071792,1743687052125,-1099.5,0.00019452,2]
[357071793,1743687052136,-2862.34,0.00019452,2]
[357071794,1743687052147,-12717.15,0.00019452,2]
[357071795,1743687052158,-500.0,0.00019452,2]
[357071796,1743687052169,-500.0,0.00019452,2]
[357071797,1743687052179,-823.0,0.00019663,2]
[357071798,1743687052189,-500.0,0.00019726,2]
[357071799,1743687052199,-500.0,0.00019726,2]
[357071800,1743687052210,-500.0,0.00019726,2]
[357071801,1743687052219,-500.0,0.00019726,2]
[357071802,1743687052229,-500.0,0.00019726,2]
[357071803,1743687052239,-500.0,0.00019726,2]
[357071804,1743687052248,-500.0,0.00019726,2]
[357071805,1743687052258,-500.0,0.00019726,2]
[357071806,1743687052267,-730.05,0.00019726,2]
[357071807,1743687052277,-683.61,0.00019726,2]
[357071808,1743687052287,-500.0,0.00019726,2]
[357071809,1743687052296,-500.0,0.00019726,2]
[357071810,1743687052306,-1207.34,0.00019726,2]
[357071811,1743687052316,-558.56,0.00019726,2]
[357071812,1743687052326,-500.0,0.00019726,2]
[357071813,1743687052335,-327.52,0.00019726,2]
[357071814,1743687052345,-504.37,0.00019726,2]
[357071815,1743687052355,-523.18,0.00019726,2]
[357071816,1743687052365,-1211.47,0.00019726,2]
[357071817,1743687052375,-650.38,0.00019726,2]
[357071818,1743687052386,-304.0,0.00019726,2]
[357071819,1743687052395,-2375.27,0.00019726,2]
[357071820,1743687052405,-441.42,0.00019726,2]
[357071821,1743687052415,-500.0,0.00019726,2]
[357071822,1743687052425,-1916.48,0.00019726,2]
[357071823,1743687052435,-359.26,0.00019726,2]
[357071824,1743687052445,-2466.78,0.00019726,2]
[357071825,1743687052455,-500.0,0.00019726,2]
[357071826,1743687052464,-500.0,0.00019726,2]
[357071827,1743687052475,-494.38,0.00019726,2]
[357071828,1743687052484,-500.0,0.00019726,2]
[357071829,1743687052494,-500.0,0.00019726,2]
[357071830,1743687052504,-912.83,0.00019726,2]
[357071831,1743687052513,-513.32,0.00019726,2]
[357071832,1743687052523,-923.55,0.00019726,2]
[357071833,1743687052533,-842.99,0.00019726,2]
[357071834,1743687052543,-1875.47,0.00019726,2]
[357071835,1743687052553,-500.0,0.00019726,2]
[357071836,1743687052563,-2004.56,0.00019726,2]
[357071837,1743687052574,-1307.68,0.00019726,2]
[357071838,1743687052584,-2254.39,0.00019726,2]
[357071839,1743687052595,-500.0,0.00019726,2]
[357071840,1743687052606,-2537.82,0.00019726,2]
[357071841,1743687052620,-957.44,0.00019726,2]
[357071842,1743687052631,-1020.41,0.00019726,2]
[357071843,1743687052641,-727.56,0.00019726,2]
[357071844,1743687052651,-530.16,0.00019726,2]
[357071845,1743687052661,-579.7,0.00019726,2]
[357071846,1743687052671,-1818.67,0.00019726,2]
[357071847,1743687052681,-5713.53,0.00019726,2]
[357071848,1743687052691,-5394.85,0.00019726,2]
[357071849,1743687052701,-2136.21,0.00019726,2]
[357071850,1743687052711,-1893.4,0.00019726,2]
[357071851,1743687052723,-202.35368038,0.00019726,2]
[357071852,1743687052733,-861.52,0.00019726,2]
[357071853,1743687052743,-1082.76,0.00019726,2]
[357071854,1743687052754,-500.0,0.00019726,2]
[357071855,1743687052766,-281.76878777,0.00019726,2]
[357071856,1743687052784,-218.23121223,0.00019726,2]
[357071857,1743687052795,-701.93,0.00019726,2]
[357071858,1743687052806,-659.88,0.00019726,2]
[357071859,1743687052818,-1253.96,0.00019726,2]
[357071860,1743687052829,-1399.29,0.00019726,2]
[357071861,1743687052839,-500.0,0.00019726,2]
[357071862,1743687052851,-3148.28,0.00019726,2]
[357071863,1743687052861,-500.0,0.00019726,2]
[357071864,1743687052877,-523.11,0.00019726,2]
[357071865,1743687052890,-1356.99,0.00019726,2]
[357071866,1743687052900,-615.66,0.00019726,2]
[357071867,1743687052909,-1099.5,0.00019726,2]
[357071868,1743687052919,-2862.34,0.00019726,2]
[357071869,1743687052928,-12717.15,0.00019726,2]
[357071870,1743687052938,-500.0,0.00019726,2]
[357071871,1743687052947,-500.0,0.00019726,2]
[357071872,1743687052957,-5667.82865638,0.00019831,2]
[357071873,1743687052968,-215.0738,0.00019926,2]
[357071874,1743687052977,-284.63429593,0.00019973,2]
[357071875,1743687052988,-500.0,0.00019973,2]
[357071876,1743687052997,-500.0,0.00019973,2]
[357071877,1743687053007,-481.27267452,0.00019973,2]
[357071878,1743687053019,-18.72732548,0.00019973,2]
[357071879,1743687053028,-500.71988164,0.00019973,2]
[357071880,1743687053037,-500.4449197,0.00019973,2]
[357071881,1743687053047,-500.0,0.00019973,2]
[357071882,1743687053057,-500.0,0.00019973,2]
[357071883,1743687053068,-500.0,0.00019973,2]
[357071884,1743687053078,-500.0,0.0002,2]
[357071885,1743687053088,-500.0,0.0002,2]
[357071886,1743687053097,-522.48456652,0.0002,2]
[357071887,1743687053107,-500.0,0.0002,2]
[357071888,1743687053119,-319.28748524,0.0002,2]
[357071889,1743687053128,-500.0,0.0002,2]
[357071890,1743687053138,-500.0,0.0002,2]
[357071891,1743687053147,-500.0,0.0002,2]
[357071892,1743687053157,-730.05,0.0002,2]
[357071893,1743687053167,-683.61,0.0002,2]
[357071894,1743687053176,-500.0,0.0002,2]
[357071895,1743687053186,-500.0,0.0002,2]
[357071896,1743687053195,-1207.34,0.0002,2]
[357071897,1743687053204,-558.56,0.0002,2]
[357071898,1743687053214,-500.0,0.0002,2]
[357071899,1743687053223,-36401.15650333,0.0002,2]
[357071900,1743687053466,-2742.77701098,0.0002,2]
[357071901,1743687053572,-409.4,0.00016338,2]
[357071902,1743687053585,-260.85097736,0.00016338,2]
[357071903,1743687053595,-500.0,0.00016438,2]
[357071904,1743687053605,-717.5869141,0.00017359,2]
[357071905,1743687053616,-542.0,0.00017916,2]
[357071906,1743687053628,-31300.40095931,0.0002,2]
[357071910,1743687178192,1542.84566056,0.00025,30]
[357071912,1743687210158,471.81,0.00010959,2]
[357071913,1743687220750,471.81,0.00010959,2]
[357071914,1743687241639,662.5,0.00010959,2]
[357071919,1743687602137,174.005651,0.00025,30]
[357071962,1743688232701,-699.429298,0.00014956,2]
[357071963,1743688232711,-509.4085888,0.00015064,2]
[357071964,1743688232721,-300.0,0.00015311,2]
[357071965,1743688232732,-4943.07771875,0.00015311,2]
[357071966,1743688232742,-7626.9611538,0.00015312,2]
[357071967,1743688232752,-250.0,0.00015506,2]
[357071968,1743688232761,-717.36593548,0.00016237,2]
[357071969,1743688232771,-164.8729509,0.00016237,2]
[357071970,1743688232781,-151.0,0.00016328,2]
[357071971,1743688232791,-500.0,0.00016337,2]
[357071972,1743688232800,-489.29873303,0.00016337,2]
[357071973,1743688232809,-47810.33908812,0.00016338,2]
[357071974,1743688232908,-428.0601985,0.00016338,2]
[357071982,1743688238511,-624.92819811,0.00016337,2]
[357071983,1743688238522,-500.0,0.00016337,2]
[357071984,1743688238532,-188.14069721,0.00016337,2]
[357071985,1743688238542,-438.81101894,0.00016337,2]
[357071986,1743688238554,-61.18898106,0.00016337,2]
[357071987,1743688238564,-207.87286725,0.00016337,2]
[357071988,1743688238574,-500.0,0.00016337,2]
[357071989,1743688238583,-500.0,0.00016337,2]
[357071990,1743688238593,-500.0,0.00016337,2]
[357071991,1743688238603,-500.0,0.00016337,2]
[357071992,1743688238615,-500.0,0.00016337,2]
[357071993,1743688238625,-500.0,0.00016337,2]
[357071994,1743688238635,-225.17317857,0.00016337,2]
[357071995,1743688238644,-500.0,0.00016337,2]
[357071996,1743688238654,-500.0,0.00016337,2]
[357071997,1743688238664,-500.0,0.00016337,2]
[357071998,1743688238674,-500.0,0.00016337,2]
[357071999,1743688238683,-500.0,0.00016337,2]
[357072000,1743688238693,-500.0,0.00016337,2]
[357072001,1743688238702,-500.0,0.00016337,2]
[357072002,1743688238712,-500.0,0.00016337,2]
[357072003,1743688238721,-500.0,0.00016337,2]
[357072004,1743688238731,-500.0,0.00016337,2]
[357072005,1743688238741,-500.0,0.00016337,2]
[357072006,1743688238750,-73442.19054022,0.00016338,2]
[357072007,1743688238766,-18165.67178495,0.00016338,2]
[357072021,1743688240844,-2411.49341986,0.00016338,2]
[357072034,1743688243913,-1887.39136415,0.00016338,2]
[357072236,1743688246572,-5108.46403626,0.00016338,2]
[357072242,1743688246616,-18762.46565685,0.00016338,2]
[357072244,1743688246628,-29554.92238241,0.00016338,2]
[357072247,1743688246640,-94719.17884138,0.00016338,2]
[357072249,1743688246652,-5719.50042343,0.00016338,2]
[357072371,1743688247952,-71990.32226387,0.00016338,2]
[357072373,1743688247963,-500.0,0.00016438,2]
[357072375,1743688247972,-505.50264958,0.00016438,2]
[357072378,1743688247982,-503.22007225,0.00016438,2]
[357072380,1743688247993,-508.56877087,0.00016438,2]
[357072382,1743688248005,-544.60229462,0.00016438,2]
[357072384,1743688248016,-500.0,0.00016438,2]
[357072386,1743688248026,-500.0,0.00016438,2]
[357072388,1743688248037,-503.52485827,0.00016438,2]
[357072390,1743688248048,-503.64014482,0.00016438,2]
[357072392,1743688248058,-501.81720383,0.00016438,2]
[357072394,1743688248069,-500.0,0.00016438,2]
[357072396,1743688248079,-500.0,0.00016438,2]
[357072398,1743688248089,-517.0907649,0.00016438,2]